fUST/lending_fUST_20251208
["ID","MTS","AMOUNT","RATE_DAILY","PERIOD"]
[397408723,1765175984666,-5044.58209185,0.00035675,31]
[397408724,1765175984688,-343.77270458,0.00035675,30]
[397408725,1765175984712,-106669.80770253,0.00035675,30]
[397408726,1765175984734,-254.00399131,0.00035675,120]
[397408727,1765175984758,-394.20241078,0.00035675,45]
[397408728,1765175984781,-14187.0,0.00035675,120]
[397408729,1765175984804,-100000.0,0.00035675,30]
[397408730,1765175984828,-26168.95,0.00035675,90]
[397408731,1765175984851,-100000.0,0.00035675,60]
[397408732,1765175984874,-1338.53622058,0.00035675,120]
[397408733,1765175984898,-1000.0,0.00035675,30]
[397408734,1765175984923,-500.0,0.00035675,120]
[397408735,1765175984949,-500.0,0.00035675,120]
[397408736,1765175984974,-500.0,0.00035675,120]
[397408737,1765175984999,-500.0,0.00035675,120]
[397408738,1765175985024,-500.0,0.00035675,120]
[397408739,1765175985052,-500.0,0.00035675,120]
[397408740,1765175985077,-500.0,0.00035675,120]
[397408741,1765175985102,-325.262976,0.00035675,120]
[397408742,1765175985128,-416629.0,0.00035675,60]
[397408743,1765175985150,-762.62,0.00035675,120]
[397408744,1765175985173,-762.62,0.00035675,120]
[397408745,1765175985196,-762.62,0.00035675,120]
[397408746,1765175985219,-762.62,0.00035675,120]
[397408747,1765175985242,-762.62,0.00035675,120]
[397408748,1765175985264,-762.62,0.00035675,120]
[397408749,1765175985290,-762.62,0.00035675,120]
[397408750,1765175985312,-762.62,0.00035675,120]
[397408751,1765175985334,-762.62,0.00035675,120]
[397408752,1765175985357,-762.62,0.00035675,120]
[397408753,1765175985380,-762.62,0.00035675,120]
[397408754,1765175985402,-762.62,0.00035675,120]
[397408755,1765175985425,-762.62,0.00035675,120]
[397408756,1765175985448,-762.62,0.00035675,120]
[397408757,1765175985472,-762.62,0.00035675,120]
[397408758,1765175985495,-762.62,0.00035675,120]
[397408759,1765175985517,-762.62,0.00035675,120]
[397408760,1765175985541,-762.62,0.00035675,120]
[397408761,1765175985564,-762.62,0.00035675,120]
[397408762,1765175985593,-762.62,0.00035675,120]
[397408763,1765175985620,-762.62,0.00035675,120]
[397408764,1765175985643,-762.62,0.00035675,120]
[397408765,1765175985666,-762.62,0.00035675,120]
[397408766,1765175985690,-762.69305949,0.00035675,120]
[397408767,1765175985714,-27500.0,0.00035675,120]
[397408768,1765175985738,-5121.94715861,0.00035675,120]
[397408769,1765175985762,-3000.0,0.00035675,120]
[397408770,1765175985786,-2174.48461703,0.00035675,120]
[397408771,1765175985810,-1204.6051768,0.00035675,120]
[397408772,1765175985835,-300.0,0.00035675,120]
[397408773,1765175985861,-1302.65072589,0.00035675,62]
[397408774,1765175985885,-10253.88148646,0.00035675,30]
[397408775,1765175985911,-310.31978883,0.00035675,120]
[397408776,1765175985937,-246.80685172,0.00035675,120]
[397408777,1765175985961,-7094.0,0.00035675,120]
[397408778,1765175985985,-1250.90668901,0.00035675,120]
[397408779,1765175986009,-109937.91433198,0.00035675,120]
[397408780,1765175986032,-151.10165732,0.00035675,30]
[397408781,1765175986059,-168.07306701,0.00035675,120]
[397408782,1765175986083,-500.0,0.00035675,31]
[397408783,1765175986109,-500.0,0.00035675,31]
[397408784,1765175986134,-500.0,0.00035675,31]
[397408785,1765175986158,-500.0,0.00035675,31]
[397408786,1765175986182,-500.0,0.00035675,31]
[397408787,1765175986206,-415.24497815,0.00035675,31]
[397408788,1765175986230,-500.0,0.00035675,31]
[397408789,1765175986254,-500.0,0.00035675,31]
[397408790,1765175986278,-500.0,0.00035675,31]
[397408791,1765175986302,-500.0,0.00035675,31]
[397408792,1765175986328,-500.0,0.00035675,31]
[397408793,1765175986351,-500.0,0.00035675,31]
[397408794,1765175986375,-500.0,0.00035675,31]
[397408795,1765175986399,-500.0,0.00035675,31]
[397408796,1765175986423,-500.0,0.00035675,31]
[397408797,1765175986446,-500.0,0.00035675,31]
[397408798,1765175986471,-500.0,0.00035675,31]
[397408799,1765175986495,-342.62484918,0.00035675,31]
[397408800,1765175986519,-1193.3,0.00035675,30]
[397408801,1765175986542,-378.6936093,0.00035675,120]
[397408802,1765175986726,-543.50397107,0.00035675,120]
[397408803,1765175986764,-8940.0,0.00035675,120]
[397408804,1765175986791,-10230.39284177,0.00035675,120]
[397408805,1765175986817,-94615.21188694,0.00035675,30]
[397408806,1765175986844,-12529.4617488,0.00035675,120]
[397408807,1765175986871,-206.016166,0.00035675,40]
[397408808,1765175986896,-206.016166,0.00035675,40]
[397408809,1765175986920,-5000.0,0.00035675,120]
[397408810,1765175986944,-619.5940455,0.00035675,120]
[397408811,1765175986971,-200.0,0.00035675,30]
[397408812,1765175986996,-6010.40614168,0.00035675,30]
[397408813,1765175993193,300.0,0.00035675,120]
[397408814,1765175993930,300.0,0.00035675,120]
[397408815,1765175994462,300.0,0.00035675,120]
[397408816,1765175995019,174.6657375,0.00035675,120]
[397408817,1765176006421,-125223.50757902,0.0002,30]
[397408818,1765176006446,-182.145,0.0002,30]
[397408819,1765176006471,-399.31076779,0.0002,30]
[397408820,1765176006495,-190316.0,0.0002,30]
[397408821,1765176006520,-159.0,0.0002,30]
[397408822,1765176006544,-158.0,0.0002,30]
[397408823,1765176006568,-2926.64,0.0002,30]
[397408824,1765176006594,-287.22315255,0.0002045,30]
[397408825,1765176006619,-190.37668688,0.00020582,32]
[397408826,1765176006643,-399.31076779,0.000206,30]
[397408827,1765176006669,-190.37668688,0.00020824,48]
[397408828,1765176006695,-826.65023146,0.00021,30]
[397408829,1765176006721,-190.37668688,0.00021066,63]
[397408830,1765176006745,-298.37620885,0.00021083,56]
[397408831,1765176006775,-262.44182912,0.00021156,30]
[397408832,1765176006799,-189.53023576,0.0002118,56]
[397408833,1765176006824,-182.80130008,0.0002118,56]
[397408834,1765176006849,-333.33333333,0.00021185,56]
[397408835,1765176006874,-399.31076779,0.000212,30]
[397408836,1765176006902,-190.37668688,0.00021308,79]
[397408837,1765176006932,-229.32809505,0.00021486,30]
[397408838,1765176006967,-190.37668688,0.00021549,94]
[397408839,1765176007013,-190.37668688,0.00021791,110]
[397408840,1765176007051,-15000.0,0.000219,45]
[397408841,1765176007087,-298.37620885,0.00021935,110]
[397408842,1765176007139,-189.53023576,0.00022035,110]
[397408843,1765176007186,-182.80130008,0.00022035,110]
[397408844,1765176007213,-172.88,0.00022155,30]
[397408845,1765176007269,-200.0,0.00022583,120]
[397408846,1765176007301,-200.0,0.00022715,120]
[397408847,1765176007350,-1008.01,0.00023,30]
[397408848,1765176007378,-172.88,0.0002321,30]
[397408849,1765176007411,-200.0,0.00023465,120]
[397408850,1765176007441,-200.0,0.00023566,120]
[397408851,1765176007485,-2353.45023759,0.000237,30]
[397408852,1765176007534,-23719.29978734,0.00024,60]
[397408853,1765176007582,-200.0,0.00024058,120]
[397408854,1765176007609,-200.0,0.00024195,120]
[397408855,1765176007663,-200.0,0.00024266,120]
[397408856,1765176007696,-200.0,0.00024286,120]
[397408857,1765176007739,-364.0,0.00024658,30]
[397408858,1765176007768,-296.0,0.000248,120]
[397408859,1765176007796,-200.0,0.00025,120]
[397408860,1765176007821,-25000.0,0.00025,30]
[397408861,1765176007846,-150.0,0.00025,30]
[397408862,1765176007872,-300.0,0.00025,30]
[397408863,1765176007899,-150.0,0.00025,30]
[397408864,1765176007924,-150.0,0.00025,30]
[397408865,1765176007948,-150.0,0.00025,30]
[397408866,1765176008215,-150.0,0.00025,30]
[397408867,1765176008245,-170.0,0.00025,30]
[397408868,1765176008273,-200.0,0.00025013,120]
[397408869,1765176008301,-1000.0,0.000254,120]
[397408870,1765176008329,-475.0,0.00025806,30]
[397408871,1765176008354,-475.0,0.00025806,30]
[397408872,1765176008381,-150.13985605,0.00025847,120]
[397408873,1765176008409,-200.0,0.00026,120]
[397408874,1765176008434,-150.0,0.00026,30]
[397408875,1765176008461,-150.0,0.00027,30]
[397408876,1765176008487,-343.00021,0.00027,120]
[397408877,1765176008513,-500.0,0.00027,30]
[397408878,1765176008539,-579.94038,0.00027,120]
[397408879,1765176008565,-200.0,0.00027,120]
[397408880,1765176008592,-2505.86538883,0.00027397,30]
[397408881,1765176008618,-2377.3990435,0.00027397,30]
[397408882,1765176008646,-1000.0,0.000274,120]
[397408883,1765176008677,-12538.0,0.000275,120]
[397408884,1765176008703,-579.94038,0.000279,120]
[397408885,1765176008728,-200.0,0.000279,120]
[397408886,1765176008755,-500.0,0.00028,30]
[397408887,1765176008780,-150.0,0.00028,30]
[397408888,1765176008809,-200.0,0.0002821,120]
[397408889,1765176008836,-1000.0,0.000284,120]
[397408890,1765176008863,-343.00021,0.000285,120]
[397408891,1765176008892,-154.38821965,0.0002876,120]
[397408892,1765176008919,-739.323583,0.00028767,60]
[397408893,1765176008945,-384.7733376,0.00028767,30]
[397408894,1765176008973,-579.94038,0.000288,120]
[397408895,1765176009001,-200.0,0.000288,120]
[397408896,1765176009030,-200.0,0.00028889,120]
[397408897,1765176009060,-1396.9467933,0.00029,120]
[397408898,1765176009087,-1000.0,0.00029,120]
[397408899,1765176009113,-25000.0,0.00029,45]
[397408900,1765176009142,-150.00785351,0.00029,60]
[397408901,1765176009169,-150.0,0.00029,30]
[397408902,1765176009196,-286.82457,0.00029,120]
[397408903,1765176009223,-1000.0,0.000294,120]
[397408904,1765176009249,-200.29888,0.000295,120]
[397408905,1765176009276,-153.04968629,0.000295,120]
[397408906,1765176009304,-200.0,0.00029527,120]
[397408907,1765176009331,-579.94038,0.000297,120]
[397408908,1765176009357,-244.80297,0.000297,120]
[397408909,1765176009383,-180000.00303054,0.000299,30]
[397408910,1765176009408,-160.98069127,0.0003,60]
[397408911,1765176009433,-752.92,0.0003,60]
[397408912,1765176009457,-366.81329174,0.0003,120]
[397408913,1765176009481,-491.74408798,0.0003,120]
[397408914,1765176009506,-830.95777684,0.0003,120]
[397408915,1765176009530,-260.89971505,0.0003,120]
[397408916,1765176009554,-500.0,0.0003,120]
[397408917,1765176009579,-200.0,0.0003,120]
[397408918,1765176009603,-500.0,0.0003,120]
[397408919,1765176009628,-8524.27127161,0.0003,30]
[397408920,1765176009652,-1189.0,0.0003,45]
[397408921,1765176009675,-30000.0,0.0003,60]
[397408922,1765176009699,-25000.0,0.0003,45]
[397408923,1765176009723,-407.0762397,0.0003,120]
[397408924,1765176009748,-243.0084,0.0003,120]
[397408925,1765176009772,-16240.44084118,0.0003,120]
[397408926,1765176009796,-150.0,0.0003,30]
[397408927,1765176009821,-267.0,0.0003,30]
[397408928,1765176009845,-343.00021,0.0003,120]
[397408929,1765176009871,-399.25119403,0.0003,120]
[397408930,1765176009897,-717.90842453,0.0003,120]
[397408931,1765176009922,-1583.93261794,0.0003,120]
[397408932,1765176009947,-1268.299997,0.0003,120]
[397408933,1765176009972,-30580.31854818,0.0003,30]
[397408934,1765176009998,-1212.87,0.0003,30]
[397408935,1765176010024,-150.0,0.0003,60]
[397408936,1765176010051,-150.0,0.0003,60]
[397408937,1765176010078,-150.0,0.0003,60]
[397408938,1765176010103,-150.0,0.0003,60]
[397408939,1765176010128,-170.0,0.0003,60]
[397408940,1765176010153,-675.13,0.0003,120]
[397408941,1765176010178,-582.8,0.0003,120]
[397408942,1765176010203,-158.01214533,0.0003013,30]
[397408943,1765176010228,-14545.78000893,0.00030137,120]
[397408944,1765176010253,-14821.22714231,0.00030137,120]
[397408945,1765176010279,-480.0764871,0.00030137,120]
[397408946,1765176010304,-4990.55388514,0.00030137,120]
[397408947,1765176010329,-6250.0,0.00030137,120]
[397408948,1765176010354,-225.76,0.00030137,120]
[397408949,1765176010379,-329.17198775,0.0003015,120]
[397408950,1765176010405,-2200.0,0.00030177,120]
[397408951,1765176010430,-212.0,0.00030192,38]
[397408952,1765176010455,-200.0,0.000302,120]
[397408953,1765176010480,-200.0,0.000302,120]
[397408954,1765176010505,-203.271,0.000302,120]
[397408955,1765176010530,-200.41216,0.000302,120]
[397408956,1765176010556,-579.94038,0.000306,120]
[397408957,1765176010582,-200.0,0.00030645,120]
[397408958,1765176010606,-151.37006691,0.000308,60]
[397408959,1765176010632,-200.0,0.00030802,120]
[397408960,1765176010658,-200.0,0.00030875,120]
[397408961,1765176010683,-863.77,0.00030958,30]
[397408962,1765176010708,-150.0,0.00031,30]
[397408963,1765176010732,-160.0,0.00031,120]
[397408964,1765176010758,-200.0,0.00031196,120]
[397408965,1765176010785,-500.0,0.000314,120]
[397408966,1765176010812,-343.00021,0.000315,120]
[397408967,1765176010837,-579.94038,0.000315,120]
[397408968,1765176010862,-675.13,0.000315,120]
[397408969,1765176011052,-180.05,0.000315,120]
[397408970,1765176011082,-5298.57,0.000315,120]
[397408971,1765176011109,-582.8,0.000315,120]
[397408972,1765176011134,-250.35,0.0003165,30]
[397408973,1765176011158,-172.88,0.0003165,60]
[397408974,1765176011183,-201.67886,0.000318,120]
[397408975,1765176011208,-203.37002,0.000318,120]
[397408976,1765176011232,-863.77,0.00031863,30]
[397408977,1765176011256,-1047.50962491,0.00031945,120]
[397408978,1765176011281,-1000.0,0.00032,120]
[397408979,1765176011304,-243.93686343,0.00032,120]
[397408980,1765176011329,-500.0,0.00032,120]
[397408981,1765176011354,-1177.0,0.00032,90]
[397408982,1765176011378,-150.0,0.00032,30]
[397408983,1765176011402,-200.0,0.00032,120]
[397408984,1765176011426,-6508.56384094,0.00032,120]
[397408985,1765176011451,-13867.36268282,0.00032,30]
[397408986,1765176011475,-2459.39,0.000322,120]
[397408987,1765176011500,-200.0,0.00032233,120]
[397408988,1765176011526,-163.0,0.00032384,52]
[397408989,1765176011551,-579.94038,0.000324,120]
[397408990,1765176011575,-10000.0,0.000324,120]
[397408991,1765176011599,-500.0,0.000325,120]
[397408992,1765176011624,-192.770696,0.0003267,120]
[397408993,1765176011648,-1187.72684,0.00032671,120]
[397408994,1765176011673,-198.655014,0.00032671,120]
[397408995,1765176011698,-321.687865,0.00032671,120]
[397408996,1765176011722,-3419.0,0.000327,60]
[397408997,1765176011748,-863.77,0.00032767,30]
[397408998,1765176011774,-200.0,0.00032782,120]
[397408999,1765176011799,-1000.0,0.0003287,120]
[397409000,1765176011823,-263.5,0.00032875,120]
[397409001,1765176011853,-1926.41,0.00032876,120]
[397409002,1765176011880,-999.0,0.00032876,120]
[397409003,1765176011905,-329.917977,0.00032877,31]
[397409004,1765176011930,-329.917977,0.00032877,31]
[397409005,1765176011955,-329.917977,0.00032877,31]
[397409006,1765176011979,-329.917977,0.00032877,31]
[397409007,1765176012004,-329.917977,0.00032877,31]
[397409008,1765176012029,-329.917977,0.00032877,31]
[397409009,1765176012057,-329.917977,0.00032877,31]
[397409010,1765176012082,-329.917977,0.00032877,31]
[397409011,1765176012107,-329.917977,0.00032877,31]
[397409012,1765176012131,-329.917977,0.00032877,31]
[397409013,1765176012156,-329.917977,0.00032877,31]
[397409014,1765176012180,-329.917977,0.00032877,31]
[397409015,1765176012205,-329.917977,0.00032877,31]
[397409016,1765176012230,-329.917977,0.00032877,31]
[397409017,1765176012255,-329.917977,0.00032877,31]
[397409018,1765176012281,-329.917977,0.00032877,31]
[397409019,1765176012312,-329.917977,0.00032877,31]
[397409020,1765176012347,-329.917977,0.00032877,31]
[397409021,1765176012381,-329.917977,0.00032877,31]
[397409022,1765176012406,-329.917976,0.00032877,31]
[397409023,1765176012432,-1000.0,0.00032877,120]
[397409024,1765176012457,-1000.0,0.00032877,120]
[397409025,1765176012482,-1000.0,0.00032877,120]
[397409026,1765176012506,-1000.0,0.00032877,120]
[397409027,1765176012531,-1000.0,0.00032877,120]
[397409028,1765176012555,-1000.0,0.00032877,120]
[397409029,1765176012581,-1000.0,0.00032877,120]
[397409030,1765176012606,-1000.0,0.00032877,120]
[397409031,1765176012630,-1000.0,0.00032877,120]
[397409032,1765176012655,-500.0,0.00032877,30]
[397409033,1765176012679,-500.0,0.00032877,30]
[397409034,1765176012704,-500.0,0.00032877,30]
[397409035,1765176012728,-500.0,0.00032877,30]
[397409036,1765176012753,-500.0,0.00032877,30]
[397409037,1765176012777,-542.0,0.00032877,30]
[397409038,1765176012804,-1512.30787859,0.0003288,120]
[397409039,1765176012836,-1926.41,0.00032904,120]
[397409040,1765176012872,-1926.41,0.00032931,120]
[397409041,1765176012915,-1926.41,0.00032958,120]
[397409042,1765176012946,-1926.41,0.00032986,120]
[397409043,1765176012972,-205.0,0.0003299,34]
[397409044,1765176013025,-500.0,0.00033,120]
[397409045,1765176013064,-2863.53890435,0.00033,120]
[397409046,1765176013110,-150.0,0.00033,30]
[397409047,1765176013157,-633.16554939,0.00033,30]
[397409048,1765176013184,-343.00021,0.00033,120]
[397409049,1765176013209,-4560.70299834,0.00033,30]
[397409050,1765176013234,-25000.0,0.00033,45]
[397409051,1765176013260,-1926.41,0.00033013,120]
[397409052,1765176013287,-200.0,0.00033031,120]
[397409053,1765176013312,-1926.41,0.00033041,120]
[397409054,1765176013338,-1926.41,0.00033068,120]
[397409055,1765176013362,-675.13,0.00033075,120]
[397409056,1765176013389,-5298.57,0.00033075,120]
[397409057,1765176013414,-180.05,0.00033075,120]
[397409058,1765176013439,-582.8,0.00033075,120]
[397409059,1765176013464,-1926.41,0.00033095,120]
[397409060,1765176013490,-1926.41,0.00033123,120]
[397409061,1765176013516,-1926.41,0.0003315,120]
[397409062,1765176013541,-1000.0,0.00033151,120]
[397409063,1765176013566,-1926.41,0.00033178,120]
[397409064,1765176013590,-1926.41,0.00033205,120]
[397409065,1765176013614,-92415.3246,0.0003322,30]
[397409066,1765176013638,-1926.41,0.00033232,120]
[397409067,1765176013663,-1926.41,0.0003326,120]
[397409068,1765176013687,-338.52658505,0.00033261,30]
[397409069,1765176013711,-1926.41,0.00033287,120]
[397409070,1765176013754,-150.0,0.000333,120]
[397409071,1765176013798,-579.94038,0.000333,120]
[397409072,1765176014015,-200.0,0.00033303,120]
[397409073,1765176014061,-1926.41,0.00033315,120]
[397409074,1765176014121,-1926.41,0.00033342,120]
[397409075,1765176014171,-1926.41,0.00033369,120]
[397409076,1765176014218,-1926.41,0.00033397,120]
[397409077,1765176014264,-1087.69058134,0.00033401,120]
[397409078,1765176014310,-1926.41,0.00033424,120]
[397409079,1765176014357,-1000.0,0.00033425,120]
[397409080,1765176014407,-1000.0,0.00033425,120]
[397409081,1765176014452,-1926.41,0.00033452,120]
[397409082,1765176014499,-2935338.56861456,0.00033475,30]
[397409083,1765176029854,-999.0,0.00032876,120]
[397409084,1765176029884,-1244567.999,0.00033475,30]
[397409085,1765176029909,-1926.41,0.00033479,120]
[397409086,1765176029935,-844.80297,0.000335,120]
[397409087,1765176029960,-294.95705,0.000335,120]
[397409088,1765176029985,-204.12019,0.000335,120]
[397409089,1765176030013,-402.14222,0.000335,120]
[397409090,1765176030039,-200.0,0.000335,120]
[397409091,1765176030067,-1926.61447928,0.00033506,120]
[397409092,1765176030093,-378.0,0.00033568,30]
[397409093,1765176030117,-863.77,0.00033671,30]
[397409094,1765176030141,-1000.0,0.00033699,120]
[397409095,1765176030165,-1000.0,0.00033973,120]
[397409096,1765176030188,-1000.0,0.00033973,120]
[397409097,1765176030213,-400.0,0.00034,120]
[397409098,1765176030238,-150.0,0.00034,120]
[397409099,1765176030263,-162.0,0.00034,120]
[397409100,1765176030287,-150.0,0.00034,30]
[397409101,1765176030312,-155.01,0.00034028,60]
[397409102,1765176030338,-155.01,0.00034031,60]
[397409103,1765176030362,-162.62203733,0.00034042,60]
[397409104,1765176030387,-155.01,0.00034098,60]
[397409105,1765176030411,-155.01,0.00034131,60]
[397409106,1765176030438,-155.01,0.00034198,60]
[397409107,1765176030682,-579.94046,0.000342,120]
[397409108,1765176030710,-155.01,0.00034231,60]
[397409109,1765176030739,-999.0,0.00034246,120]
[397409110,1765176030764,-1000.0,0.00034247,120]
[397409111,1765176030790,-155.01,0.00034298,60]
[397409112,1765176030816,-200.0,0.00034318,120]
[397409113,1765176030841,-155.01,0.00034398,60]
[397409114,1765176030866,-180.84,0.0003442,60]
[397409115,1765176030893,-1083484.01,0.0003444,30]
[397409116,1765176030918,-155.01,0.00034498,60]
[397409117,1765176030943,-343.00021,0.000345,120]
[397409118,1765176030968,-5680.36500407,0.000345,30]
[397409119,1765176030992,-3096.83,0.000345,120]
[397409120,1765176031018,-180.84,0.0003452,60]
[397409121,1765176031042,-463.53,0.00034521,30]
[397409122,1765176031070,-1000.0,0.00034521,120]
[397409123,1765176031097,-1000.0,0.00034521,120]
[397409124,1765176031124,-863.77,0.00034575,30]
[397409125,1765176031152,-174.0,0.00034575,70]
[397409126,1765176031178,-155.01,0.00034598,60]
[397409127,1765176031204,-180.855,0.0003462,60]
[397409128,1765176031228,-155.01,0.00034698,60]
[397409129,1765176031253,-675.13,0.00034729,120]
[397409130,1765176031279,-5298.57,0.00034729,120]
[397409131,1765176031305,-582.8,0.00034729,120]
[397409132,1765176031331,-1000.0,0.00034795,120]
[397409133,1765176031356,-155.01,0.00034798,60]
[397409134,1765176031382,-205.0,0.0003485,39]
[397409135,1765176031407,-155.01,0.00034898,60]
[397409136,1765176031432,-20084.28859668,0.000349,30]
[397409137,1765176031457,-155.01,0.00034998,60]
[397409138,1765176031481,-216.58502455,0.00035,30]
[397409139,1765176031506,-100846.22690861,0.00035,120]
[397409140,1765176031531,-300.0,0.00035,120]
[397409141,1765176031556,-150.0,0.00035,120]
[397409142,1765176031580,-100162.0969708,0.00035,120]
[397409143,1765176031606,-500.0,0.00035,120]
[397409144,1765176031630,-16100.83956646,0.00035,120]
[397409145,1765176031656,-4386.475,0.00035,120]
[397409146,1765176031681,-200.0,0.00035,120]
[397409147,1765176031706,-150.0,0.00035,120]
[397409148,1765176031730,-25000.0,0.00035,30]
[397409149,1765176031755,-267.37555945,0.00035,120]
[397409150,1765176031779,-150.0,0.00035,69]
[397409151,1765176031804,-150.0,0.00035,30]
[397409152,1765176031828,-2220.34156835,0.00035,120]
[397409153,1765176031852,-571.62296877,0.00035,120]
[397409154,1765176031876,-2169.69547673,0.00035,120]
[397409155,1765176031900,-276.61196217,0.00035,120]
[397409156,1765176031926,-4747.13,0.00035,30]
[397409157,1765176031950,-800.0,0.00035,120]
[397409158,1765176031977,-172.0,0.00035,120]
[397409159,1765176032004,-1256.0,0.00035,120]
[397409160,1765176032032,-206.016166,0.00035,30]
[397409161,1765176032058,-163.0,0.00035,120]
[397409162,1765176032088,-200.0,0.00035,120]
[397409163,1765176032112,-360.0,0.00035,30]
[397409164,1765176032137,-16323.16207778,0.00035,120]
[397409165,1765176032160,-1000.0,0.00035068,120]
[397409166,1765176032186,-1000.0,0.00035068,120]
[397409167,1765176032210,-155.01,0.00035098,60]
[397409168,1765176032234,-6250.0,0.0003516,120]
[397409169,1765176032258,-155.01,0.00035198,60]
[397409170,1765176032282,-510.25674926,0.00035211,120]
[397409171,1765176032305,-155.01,0.00035298,60]
[397409172,1765176032329,-1000.0,0.00035342,120]
[397409173,1765176032353,-200.0,0.00035355,120]
[397409174,1765176032378,-200.0,0.00035384,120]
[397409175,1765176032402,-155.18949271,0.00035398,60]
[397409176,1765176032426,-1146.30863662,0.00035401,120]
[397409177,1765176032452,-858119.3359,0.0003544,30]
[397409178,1765176032476,-863.77,0.00035479,30]
[397409179,1765176032501,-172.0,0.000356,120]
[397409180,1765176032525,-1000.0,0.00035616,120]
[397409181,1765176032549,-1000.0,0.00035616,120]
[397409182,1765176032573,-151.0,0.00035616,31]
[397409183,1765176032598,-151.0,0.00035616,31]
[397409184,1765176032622,-151.0,0.00035616,31]
[397409185,1765176032645,-151.0,0.00035616,31]
[397409186,1765176032670,-151.0,0.00035616,31]
[397409187,1765176032696,-151.0,0.00035616,31]
[397409188,1765176032722,-151.0,0.00035616,31]
[397409189,1765176032748,-276.630944,0.00035616,31]
[397409190,1765176032773,-151.0,0.00035616,31]
[397409191,1765176032798,-151.0,0.00035616,31]
[397409192,1765176032823,-151.0,0.00035616,31]
[397409193,1765176032848,-151.0,0.00035616,31]
[397409194,1765176032873,-151.0,0.00035616,31]
[397409195,1765176032898,-151.0,0.00035616,31]
[397409196,1765176032923,-151.0,0.00035616,31]
[397409197,1765176032947,-151.0,0.00035616,31]
[397409198,1765176032972,-151.0,0.00035616,31]
[397409199,1765176032996,-151.0,0.00035616,31]
[397409200,1765176033020,-151.0,0.00035616,31]
[397409201,1765176033045,-151.0,0.00035616,31]
[397409202,1765176033074,-151.0,0.00035616,31]
[397409203,1765176033101,-151.0,0.00035616,31]
[397409204,1765176033127,-151.0,0.00035616,31]
[397409205,1765176033155,-151.0,0.00035616,31]
[397409206,1765176033347,-151.0,0.00035616,31]
[397409207,1765176033376,-285.562147,0.00035616,31]
[397409208,1765176033404,-3888.0,0.00035674,30]
[397409209,1765176033430,-3000.0,0.00035674,30]
[397409210,1765176033456,-4031.856,0.00035674,31]
[397409211,1765176033482,-3000.0,0.00035674,30]
[397409212,1765176033508,-4181.034672,0.00035674,32]
[397409213,1765176033534,-3000.0,0.00035674,30]
[397409214,1765176033561,-3000.0,0.00035674,30]
[397409215,1765176033600,-150.0,0.00035675,120]
[397409216,1765176033627,-150.0,0.00035675,120]
[397409217,1765176033654,-150.0,0.00035675,120]
[397409218,1765176033680,-150.0,0.00035675,120]
[397409219,1765176033706,-170.0,0.00035675,120]
[397409220,1765176033731,-366.09398096,0.000357,30]
[397409221,1765176033757,-501.20436604,0.0003573,120]
[397409222,1765176033785,-4075.89160945,0.000358,30]